[Event "Live Chess"]
[Site "Chess.com"]
[Date "2011.01.30"]
[Round "-"]
[White "hlyrad"]
[Black "hipposcottimus"]
[Result "1-0"]
[CurrentPosition "2Q3k1/p1B2ppp/4p3/2P5/8/4PN2/P3BPPP/R1R3K1 b - -"]
[Timezone "UTC"]
[ECO "D31"]
[ECOUrl "https://www.chess.com/openings/Queens-Gambit-Declined-Semi-Slav-Defense-Accelerated-Move-Order"]
[UTCDate "2011.01.30"]
[UTCTime "03:25:37"]
[WhiteElo "1703"]
[BlackElo "1618"]
[TimeControl "60"]
[Termination "hlyrad won by checkmate"]
[StartTime "03:25:37"]
[EndDate "2011.01.30"]
[EndTime "03:26:46"]
[Link "https://www.chess.com/game/live/92820491"]

1. d4 {[%clk 0:01:00]} 1... d5 {[%clk 0:01:00]} 2. c4 {[%clk 0:00:59.7]} 2... c6 {[%clk 0:00:59.7]} 3. Nc3 {[%clk 0:00:59.3]} 3... e6 {[%clk 0:00:58.1]} 4. Nf3 {[%clk 0:00:58.9]} 4... Nf6 {[%clk 0:00:56.3]} 5. Bf4 {[%clk 0:00:58.6]} 5... Nbd7 {[%clk 0:00:55.7]} 6. e3 {[%clk 0:00:58.2]} 6... Bb4 {[%clk 0:00:55]} 7. Be2 {[%clk 0:00:57.4]} 7... Bxc3+ {[%clk 0:00:53.8]} 8. bxc3 {[%clk 0:00:56]} 8... O-O {[%clk 0:00:53.6]} 9. O-O {[%clk 0:00:54.8]} 9... Ne4 {[%clk 0:00:49.6]} 10. Qc2 {[%clk 0:00:53.2]} 10... Qa5 {[%clk 0:00:46.6]} 11. Rfc1 {[%clk 0:00:47.6]} 11... Nxc3 {[%clk 0:00:46.2]} 12. Qxc3 {[%clk 0:00:46.4]} 12... Qc7 {[%clk 0:00:45.8]} 13. cxd5 {[%clk 0:00:44.9]} 13... Qd8 {[%clk 0:00:38.5]} 14. dxc6 {[%clk 0:00:43.7]} 14... bxc6 {[%clk 0:00:36.8]} 15. Qxc6 {[%clk 0:00:42.2]} 15... Rb8 {[%clk 0:00:35.3]} 16. Bxb8 {[%clk 0:00:39.5]} 16... Bb7 {[%clk 0:00:30.2]} 17. Qxb7 {[%clk 0:00:37.6]} 17... Nc5 {[%clk 0:00:29.6]} 18. dxc5 {[%clk 0:00:36.1]} 18... Qc7 {[%clk 0:00:28.9]} 19. Bxc7 {[%clk 0:00:35.1]} 19... Rc8 {[%clk 0:00:27.7]} 20. Qxc8# {[%clk 0:00:34]} 1-0

[Event "Live Chess"]
[Site "Chess.com"]
[Date "2011.01.30"]
[Round "-"]
[White "hipposcottimus"]
[Black "drita25"]
[Result "0-1"]
[CurrentPosition "8/5R1p/6pk/1P6/8/8/rr4PP/5K2 b - -"]
[Timezone "UTC"]
[ECO "A40"]
[ECOUrl "https://www.chess.com/openings/Modern-Defense-with-1-d4-2.c4-Bg7-3.e4"]
[UTCDate "2011.01.30"]
[UTCTime "00:59:27"]
[WhiteElo "1415"]
[BlackElo "1408"]
[TimeControl "600"]
[Termination "drita25 won by resignation"]
[StartTime "00:59:27"]
[EndDate "2011.01.30"]
[EndTime "01:08:03"]
[Link "https://www.chess.com/game/live/92789616"]

1. e4 {[%clk 0:10:00]} 1... g6 {[%clk 0:10:00]} 2. d4 {[%clk 0:09:58.4]} 2... Bg7 {[%clk 0:09:58.4]} 3. c4 {[%clk 0:09:58]} 3... e6 {[%clk 0:09:54.1]} 4. Nc3 {[%clk 0:09:52.6]} 4... Nc6 {[%clk 0:09:49.4]} 5. Nf3 {[%clk 0:09:42.3]} 5... Nf6 {[%clk 0:09:38.9]} 6. e5 {[%clk 0:09:40.7]} 6... Ng8 {[%clk 0:09:19.8]} 7. Be2 {[%clk 0:09:35.8]} 7... d6 {[%clk 0:09:14.2]} 8. Bg5 {[%clk 0:09:29.7]} 8... f6 {[%clk 0:09:06.9]} 9. Bf4 {[%clk 0:09:20.9]} 9... dxe5 {[%clk 0:08:52.8]} 10. dxe5 {[%clk 0:09:16.1]} 10... Qxd1+ {[%clk 0:08:50.9]} 11. Rxd1 {[%clk 0:09:15.3]} 11... fxe5 {[%clk 0:08:22]} 12. Bg5 {[%clk 0:09:02.5]} 12... Nge7 {[%clk 0:08:08.9]} 13. c5 {[%clk 0:08:55.1]} 13... O-O {[%clk 0:07:58.9]} 14. O-O {[%clk 0:08:50.7]} 14... Nf5 {[%clk 0:07:47.2]} 15. Ne4 {[%clk 0:08:37.2]} 15... Ncd4 {[%clk 0:07:25.2]} 16. Rd2 {[%clk 0:08:21.9]} 16... b6 {[%clk 0:06:49.4]} 17. b4 {[%clk 0:08:18.4]} 17... Nxe2+ {[%clk 0:06:36.6]} 18. Rxe2 {[%clk 0:08:14.4]} 18... Ba6 {[%clk 0:06:34.5]} 19. Rc2 {[%clk 0:07:43.9]} 19... Bxf1 {[%clk 0:06:29.9]} 20. Kxf1 {[%clk 0:07:43.6]} 20... Nd4 {[%clk 0:06:22.4]} 21. Nxd4 {[%clk 0:07:38.1]} 21... exd4 {[%clk 0:06:20.7]} 22. cxb6 {[%clk 0:07:37.6]} 22... axb6 {[%clk 0:06:06.6]} 23. Rxc7 {[%clk 0:07:36.1]} 23... Rxa2 {[%clk 0:06:05.2]} 24. Be7 {[%clk 0:07:35.1]} 24... Re8 {[%clk 0:05:45.9]} 25. Nf6+ {[%clk 0:07:31.3]} 25... Bxf6 {[%clk 0:05:42.2]} 26. Bxf6 {[%clk 0:07:31]} 26... Rf8 {[%clk 0:05:36.8]} 27. Rg7+ {[%clk 0:07:28.7]} 27... Kh8 {[%clk 0:05:30.1]} 28. Bxd4 {[%clk 0:07:28.4]} 28... e5 {[%clk 0:05:23.1]} 29. Bxe5 {[%clk 0:07:26.3]} 29... Rfxf2+ {[%clk 0:05:21.5]} 30. Ke1 {[%clk 0:07:24]} 30... Rfe2+ {[%clk 0:05:19.6]} 31. Kf1 {[%clk 0:07:23.1]} 31... Rxe5 {[%clk 0:05:18.4]} 32. Rf7 {[%clk 0:07:22.5]} 32... Kg8 {[%clk 0:05:11.2]} 33. Rb7 {[%clk 0:07:20.4]} 33... Re6 {[%clk 0:05:04.8]} 34. Rb8+ {[%clk 0:07:13.5]} 34... Kg7 {[%clk 0:05:02.1]} 35. b5 {[%clk 0:07:11.2]} 35... Ree2 {[%clk 0:04:49.2]} 36. Rxb6 {[%clk 0:07:04.9]} 36... Reb2 {[%clk 0:04:47.7]} 37. Rb7+ {[%clk 0:07:03.1]} 37... Kh6 {[%clk 0:04:43.8]} 38. Rf7 {[%clk 0:06:59.1]} 0-1

[Event "Live Chess"]
[Site "Chess.com"]
[Date "2011.01.29"]
[Round "-"]
[White "Mayu"]
[Black "hipposcottimus"]
[Result "0-1"]
[CurrentPosition "8/4k1pp/8/2n5/PRP5/4r1P1/1PK4P/8 w - -"]
[Timezone "UTC"]
[ECO "D00"]
[ECOUrl "https://www.chess.com/openings/Queens-Pawn-Opening-Levitsky-Attack-2...f6-3.Bh4"]
[UTCDate "2011.01.29"]
[UTCTime "23:51:38"]
[WhiteElo "1744"]
[BlackElo "1624"]
[TimeControl "60"]
[Termination "hipposcottimus won on time"]
[StartTime "23:51:38"]
[EndDate "2011.01.29"]
[EndTime "23:53:47"]
[Link "https://www.chess.com/game/live/92774080"]

1. d4 {[%clk 0:01:00]} 1... d5 {[%clk 0:01:00]} 2. Bg5 {[%clk 0:00:59.5]} 2... f6 {[%clk 0:00:58.2]} 3. Bh4 {[%clk 0:00:58.7]} 3... e6 {[%clk 0:00:57.9]} 4. e3 {[%clk 0:00:57.5]} 4... Bd6 {[%clk 0:00:57.6]} 5. Ne2 {[%clk 0:00:55.5]} 5... Ne7 {[%clk 0:00:57.3]} 6. Bg3 {[%clk 0:00:54.5]} 6... Ng6 {[%clk 0:00:57]} 7. Bxd6 {[%clk 0:00:53.3]} 7... Qxd6 {[%clk 0:00:56.8]} 8. Ng3 {[%clk 0:00:52.9]} 8... O-O {[%clk 0:00:56.5]} 9. Nc3 {[%clk 0:00:51.4]} 9... e5 {[%clk 0:00:56.2]} 10. dxe5 {[%clk 0:00:50.2]} 10... fxe5 {[%clk 0:00:55.9]} 11. Qxd5+ {[%clk 0:00:49.3]} 11... Be6 {[%clk 0:00:52.5]} 12. Qxd6 {[%clk 0:00:46.9]} 12... cxd6 {[%clk 0:00:52.3]} 13. Bd3 {[%clk 0:00:45.4]} 13... Nc6 {[%clk 0:00:51.7]} 14. Rf1 {[%clk 0:00:43.9]} 14... d5 {[%clk 0:00:51.2]} 15. O-O-O {[%clk 0:00:41.8]} 15... e4 {[%clk 0:00:50.6]} 16. Bb5 {[%clk 0:00:40]} 16... Nb4 {[%clk 0:00:48]} 17. a3 {[%clk 0:00:38.1]} 17... a6 {[%clk 0:00:47.6]} 18. Ba4 {[%clk 0:00:36.2]} 18... b5 {[%clk 0:00:46.1]} 19. Bb3 {[%clk 0:00:35.3]} 19... Nc6 {[%clk 0:00:44.9]} 20. Bxd5 {[%clk 0:00:34]} 20... Bf7 {[%clk 0:00:42.1]} 21. Bxf7+ {[%clk 0:00:32.8]} 21... Rxf7 {[%clk 0:00:41.2]} 22. Rd6 {[%clk 0:00:31.6]} 22... Rc8 {[%clk 0:00:40.5]} 23. Rfd1 {[%clk 0:00:30]} 23... a5 {[%clk 0:00:39.4]} 24. Nxb5 {[%clk 0:00:28.6]} 24... Nce5 {[%clk 0:00:37.7]} 25. Rd8+ {[%clk 0:00:26.5]} 25... Rf8 {[%clk 0:00:36.5]} 26. Rxf8+ {[%clk 0:00:24.8]} 26... Rxf8 {[%clk 0:00:35.4]} 27. Nd6 {[%clk 0:00:24.3]} 27... Ng4 {[%clk 0:00:34.4]} 28. Ngxe4 {[%clk 0:00:23]} 28... Nxf2 {[%clk 0:00:32.1]} 29. Re1 {[%clk 0:00:20.7]} 29... Nxe4 {[%clk 0:00:30.4]} 30. Nxe4 {[%clk 0:00:19.9]} 30... Ne5 {[%clk 0:00:28.8]} 31. g3 {[%clk 0:00:18.6]} 31... Rf3 {[%clk 0:00:26.5]} 32. Kd2 {[%clk 0:00:16.7]} 32... Ng4 {[%clk 0:00:25.7]} 33. Re2 {[%clk 0:00:14.9]} 33... Rf8 {[%clk 0:00:23.4]} 34. Nd6 {[%clk 0:00:13.8]} 34... Rd8 {[%clk 0:00:22.7]} 35. c4 {[%clk 0:00:11.5]} 35... Nf6 {[%clk 0:00:22.2]} 36. Kc3 {[%clk 0:00:10.3]} 36... Rxd6 {[%clk 0:00:19.1]} 37. Rd2 {[%clk 0:00:09.8]} 37... Rc6 {[%clk 0:00:18.4]} 38. Rd8+ {[%clk 0:00:08.4]} 38... Kf7 {[%clk 0:00:18]} 39. Ra8 {[%clk 0:00:07.2]} 39... Nd7 {[%clk 0:00:16.3]} 40. Rxa5 {[%clk 0:00:06.2]} 40... Ke7 {[%clk 0:00:15.6]} 41. Ra4 {[%clk 0:00:05.4]} 41... Nc5 {[%clk 0:00:14.6]} 42. Rb4 {[%clk 0:00:03.9]} 42... Rd6 {[%clk 0:00:14]} 43. a4 {[%clk 0:00:01.8]} 43... Rd3+ {[%clk 0:00:12.5]} 44. Kc2 {[%clk 0:00:01.4]} 44... Rxe3 {[%clk 0:00:11.7]} 0-1

[Event "Live Chess"]
[Site "Chess.com"]
[Date "2011.01.29"]
[Round "-"]
[White "hipposcottimus"]
[Black "Mayu"]
[Result "0-1"]
[CurrentPosition "2k5/pp1n1pp1/2p1p1p1/8/3PP3/4QB2/PPq4r/2K1R3 w - -"]
[Timezone "UTC"]
[ECO "B01"]
[ECOUrl "https://www.chess.com/openings/Scandinavian-Defense-Mieses-Kotrc-Main-Line-4.d4-c6"]
[UTCDate "2011.01.29"]
[UTCTime "23:49:31"]
[WhiteElo "1612"]
[BlackElo "1754"]
[TimeControl "60"]
[Termination "Mayu won by checkmate"]
[StartTime "23:49:31"]
[EndDate "2011.01.29"]
[EndTime "23:51:08"]
[Link "https://www.chess.com/game/live/92773582"]

1. e4 {[%clk 0:01:00]} 1... d5 {[%clk 0:01:00]} 2. exd5 {[%clk 0:00:58.9]} 2... Qxd5 {[%clk 0:00:59.6]} 3. Nc3 {[%clk 0:00:58.6]} 3... Qa5 {[%clk 0:00:59.2]} 4. d4 {[%clk 0:00:57.5]} 4... c6 {[%clk 0:00:58.6]} 5. Bd2 {[%clk 0:00:57.3]} 5... Qc7 {[%clk 0:00:58.2]} 6. Nce2 {[%clk 0:00:56.6]} 6... Bg4 {[%clk 0:00:57.6]} 7. f3 {[%clk 0:00:52.8]} 7... Bh5 {[%clk 0:00:56.9]} 8. Ng3 {[%clk 0:00:52.5]} 8... Nf6 {[%clk 0:00:55.2]} 9. N1e2 {[%clk 0:00:52]} 9... Bg6 {[%clk 0:00:54.2]} 10. Nf4 {[%clk 0:00:51.5]} 10... e6 {[%clk 0:00:51.9]} 11. Nxg6 {[%clk 0:00:50.3]} 11... hxg6 {[%clk 0:00:51.3]} 12. Bd3 {[%clk 0:00:49.9]} 12... Bd6 {[%clk 0:00:50.3]} 13. O-O {[%clk 0:00:49.6]} 13... Nbd7 {[%clk 0:00:49.6]} 14. Ne4 {[%clk 0:00:48.2]} 14... Bxh2+ {[%clk 0:00:48.3]} 15. Kh1 {[%clk 0:00:46.6]} 15... Nxe4 {[%clk 0:00:46.4]} 16. fxe4 {[%clk 0:00:45.9]} 16... Bf4+ {[%clk 0:00:43.9]} 17. Kg1 {[%clk 0:00:43.6]} 17... Bxd2 {[%clk 0:00:43.1]} 18. Qxd2 {[%clk 0:00:43.2]} 18... Qh2+ {[%clk 0:00:42.1]} 19. Kf2 {[%clk 0:00:43]} 19... O-O-O {[%clk 0:00:38.8]} 20. Ke1 {[%clk 0:00:39.3]} 20... Qh4+ {[%clk 0:00:37.6]} 21. Kd1 {[%clk 0:00:36.3]} 21... Qg4+ {[%clk 0:00:35.8]} 22. Be2 {[%clk 0:00:36]} 22... Qg3 {[%clk 0:00:33.7]} 23. Qe3 {[%clk 0:00:35.6]} 23... Qxg2 {[%clk 0:00:32.3]} 24. Kd2 {[%clk 0:00:33.7]} 24... Rh2 {[%clk 0:00:30.3]} 25. Rae1 {[%clk 0:00:32.2]} 25... Rdh8 {[%clk 0:00:27.8]} 26. Kc1 {[%clk 0:00:31.7]} 26... R8h3 {[%clk 0:00:25.6]} 27. Qd2 {[%clk 0:00:28.9]} 27... Qg3 {[%clk 0:00:23]} 28. Rf3 {[%clk 0:00:27]} 28... Qg2 {[%clk 0:00:21.6]} 29. Qe3 {[%clk 0:00:20.8]} 29... Rxf3 {[%clk 0:00:19.7]} 30. Bxf3 {[%clk 0:00:20.3]} 30... Qxc2# {[%clk 0:00:17.8]} 0-1

[Event "Live Chess"]
[Site "Chess.com"]
[Date "2011.01.29"]
[Round "-"]
[White "Umbilcus"]
[Black "hipposcottimus"]
[Result "0-1"]
[CurrentPosition "1k1r4/pp6/2b5/1q6/6p1/b1B1P1P1/5P1P/R3R1K1 w - -"]
[Timezone "UTC"]
[ECO "A00"]
[ECOUrl "https://www.chess.com/openings/Polish-Opening-1...e5-2.Bb2"]
[UTCDate "2011.01.29"]
[UTCTime "23:46:37"]
[WhiteElo "1644"]
[BlackElo "1617"]
[TimeControl "60"]
[Termination "hipposcottimus won on time"]
[StartTime "23:46:37"]
[EndDate "2011.01.29"]
[EndTime "23:48:52"]
[Link "https://www.chess.com/game/live/92772968"]

1. b4 {[%clk 0:01:00]} 1... e5 {[%clk 0:01:00]} 2. Bb2 {[%clk 0:00:59.5]} 2... e4 {[%clk 0:00:56.8]} 3. e3 {[%clk 0:00:57.4]} 3... d5 {[%clk 0:00:52.7]} 4. Ne2 {[%clk 0:00:56.2]} 4... f6 {[%clk 0:00:51.3]} 5. a3 {[%clk 0:00:54.8]} 5... c5 {[%clk 0:00:50]} 6. bxc5 {[%clk 0:00:53.1]} 6... Bxc5 {[%clk 0:00:49.7]} 7. Nf4 {[%clk 0:00:52]} 7... Nc6 {[%clk 0:00:46.7]} 8. Be2 {[%clk 0:00:51.2]} 8... Nge7 {[%clk 0:00:45]} 9. O-O {[%clk 0:00:50.7]} 9... Ng6 {[%clk 0:00:44]} 10. Nxg6 {[%clk 0:00:49]} 10... hxg6 {[%clk 0:00:42.7]} 11. g3 {[%clk 0:00:45.4]} 11... Bd6 {[%clk 0:00:42.2]} 12. c4 {[%clk 0:00:43.1]} 12... g5 {[%clk 0:00:41.8]} 13. cxd5 {[%clk 0:00:41.7]} 13... Ne7 {[%clk 0:00:41.5]} 14. d3 {[%clk 0:00:40.4]} 14... Nxd5 {[%clk 0:00:40.2]} 15. dxe4 {[%clk 0:00:38.8]} 15... Ne7 {[%clk 0:00:40]} 16. Nc3 {[%clk 0:00:36.8]} 16... Bd7 {[%clk 0:00:39.7]} 17. Nd5 {[%clk 0:00:35.9]} 17... Bc6 {[%clk 0:00:37.7]} 18. Nxe7 {[%clk 0:00:34.3]} 18... Qxe7 {[%clk 0:00:37]} 19. Rc1 {[%clk 0:00:32.5]} 19... Qc7 {[%clk 0:00:36.3]} 20. Bf3 {[%clk 0:00:29.3]} 20... O-O-O {[%clk 0:00:34.4]} 21. Qc2 {[%clk 0:00:27.5]} 21... Be7 {[%clk 0:00:26.4]} 22. Bd4 {[%clk 0:00:26.9]} 22... Rd6 {[%clk 0:00:26.1]} 23. Rfd1 {[%clk 0:00:25.1]} 23... Rhd8 {[%clk 0:00:23.9]} 24. Re1 {[%clk 0:00:22.4]} 24... g6 {[%clk 0:00:20.8]} 25. Bg4+ {[%clk 0:00:18.9]} 25... f5 {[%clk 0:00:20]} 26. e5 {[%clk 0:00:14.9]} 26... fxg4 {[%clk 0:00:17.1]} 27. exd6 {[%clk 0:00:13.5]} 27... Bxd6 {[%clk 0:00:16.8]} 28. Qxg6 {[%clk 0:00:09.9]} 28... Bxa3 {[%clk 0:00:11]} 29. Qf5+ {[%clk 0:00:07.9]} 29... Kb8 {[%clk 0:00:08.3]} 30. Ra1 {[%clk 0:00:06.9]} 30... Qa5 {[%clk 0:00:03.8]} 31. Qxg5 {[%clk 0:00:04.8]} 31... Qxg5 {[%clk 0:00:01.8]} 32. Bc3 {[%clk 0:00:01.3]} 32... Qb5 {[%clk 0:00:00.1]} 0-1

[Event "Live Chess"]
[Site "Chess.com"]
[Date "2011.01.29"]
[Round "-"]
[White "hipposcottimus"]
[Black "Umbilcus"]
[Result "0-1"]
[CurrentPosition "5rk1/p4pp1/1p5p/3r4/2q1N3/8/P4PP1/4RRK1 w - -"]
[Timezone "UTC"]
[ECO "B01"]
[ECOUrl "https://www.chess.com/openings/Scandinavian-Defense-Modern-Scandinavian-Gambit-4.Nc3-cxd5-5.cxd5"]
[UTCDate "2011.01.29"]
[UTCTime "23:44:15"]
[WhiteElo "1608"]
[BlackElo "1653"]
[TimeControl "60"]
[Termination "Umbilcus won on time"]
[StartTime "23:44:15"]
[EndDate "2011.01.29"]
[EndTime "23:46:26"]
[Link "https://www.chess.com/game/live/92772377"]

1. e4 {[%clk 0:01:00]} 1... d5 {[%clk 0:01:00]} 2. exd5 {[%clk 0:00:58.5]} 2... Nf6 {[%clk 0:00:58.6]} 3. c4 {[%clk 0:00:57.5]} 3... c6 {[%clk 0:00:57.5]} 4. Nc3 {[%clk 0:00:48.6]} 4... cxd5 {[%clk 0:00:56.3]} 5. cxd5 {[%clk 0:00:48.3]} 5... Nxd5 {[%clk 0:00:55.8]} 6. d4 {[%clk 0:00:47.7]} 6... Nxc3 {[%clk 0:00:54.3]} 7. bxc3 {[%clk 0:00:47.5]} 7... Bf5 {[%clk 0:00:52.1]} 8. Nf3 {[%clk 0:00:47.2]} 8... e6 {[%clk 0:00:51.1]} 9. Be2 {[%clk 0:00:46.9]} 9... Bd6 {[%clk 0:00:49.4]} 10. O-O {[%clk 0:00:46.6]} 10... O-O {[%clk 0:00:49.1]} 11. Bd3 {[%clk 0:00:44.7]} 11... Bxd3 {[%clk 0:00:46.6]} 12. Qxd3 {[%clk 0:00:44.5]} 12... Nd7 {[%clk 0:00:45.3]} 13. Ng5 {[%clk 0:00:44.2]} 13... Nf6 {[%clk 0:00:43.7]} 14. Be3 {[%clk 0:00:41.2]} 14... h6 {[%clk 0:00:42.2]} 15. Nf3 {[%clk 0:00:39.3]} 15... Qc7 {[%clk 0:00:40.7]} 16. d5 {[%clk 0:00:38.4]} 16... exd5 {[%clk 0:00:38.9]} 17. Bd4 {[%clk 0:00:37.7]} 17... Be7 {[%clk 0:00:32.4]} 18. Rae1 {[%clk 0:00:37.1]} 18... Rfe8 {[%clk 0:00:30.6]} 19. Ne5 {[%clk 0:00:33.3]} 19... Rac8 {[%clk 0:00:24.6]} 20. Qe2 {[%clk 0:00:27.8]} 20... b6 {[%clk 0:00:23.2]} 21. Qf3 {[%clk 0:00:22.4]} 21... Rf8 {[%clk 0:00:18.9]} 22. Qd3 {[%clk 0:00:20.7]} 22... Bd6 {[%clk 0:00:16.9]} 23. Nf3 {[%clk 0:00:16.5]} 23... Ne4 {[%clk 0:00:13.2]} 24. Nd2 {[%clk 0:00:10.3]} 24... Nxc3 {[%clk 0:00:11.3]} 25. Bxc3 {[%clk 0:00:08.5]} 25... Qxc3 {[%clk 0:00:09.9]} 26. Qxd5 {[%clk 0:00:02.8]} 26... Rcd8 {[%clk 0:00:07.1]} 27. Ne4 {[%clk 0:00:02.5]} 27... Bxh2+ {[%clk 0:00:04.4]} 28. Kxh2 {[%clk 0:00:01.6]} 28... Rxd5 {[%clk 0:00:03.9]} 29. Kg1 {[%clk 0:00:01.3]} 29... Qc4 {[%clk 0:00:02.9]} 0-1

[Event "Live Chess"]
[Site "Chess.com"]
[Date "2011.01.29"]
[Round "-"]
[White "Nilesh"]
[Black "hipposcottimus"]
[Result "1-0"]
[CurrentPosition "4rrk1/6pn/8/1pp1B3/p2P4/P1PQ4/5PPP/R3R1K1 b - -"]
[Timezone "UTC"]
[ECO "D43"]
[ECOUrl "https://www.chess.com/openings/Semi-Slav-Defense"]
[UTCDate "2011.01.29"]
[UTCTime "23:42:12"]
[WhiteElo "1775"]
[BlackElo "1615"]
[TimeControl "60"]
[Termination "Nilesh won by resignation"]
[StartTime "23:42:12"]
[EndDate "2011.01.29"]
[EndTime "23:43:42"]
[Link "https://www.chess.com/game/live/92771848"]

1. d4 {[%clk 0:01:00]} 1... d5 {[%clk 0:01:00]} 2. c4 {[%clk 0:00:59.7]} 2... c6 {[%clk 0:00:59.8]} 3. Nf3 {[%clk 0:00:59.5]} 3... e6 {[%clk 0:00:58.6]} 4. Nc3 {[%clk 0:00:59.1]} 4... Nf6 {[%clk 0:00:58.2]} 5. Bf4 {[%clk 0:00:58.7]} 5... Nbd7 {[%clk 0:00:57.3]} 6. e3 {[%clk 0:00:58.4]} 6... Bb4 {[%clk 0:00:55.2]} 7. Qb3 {[%clk 0:00:55.9]} 7... a5 {[%clk 0:00:52.5]} 8. a3 {[%clk 0:00:54.9]} 8... dxc4 {[%clk 0:00:48.7]} 9. Bxc4 {[%clk 0:00:52.6]} 9... Bxc3+ {[%clk 0:00:46]} 10. bxc3 {[%clk 0:00:51.6]} 10... O-O {[%clk 0:00:45.7]} 11. O-O {[%clk 0:00:50.1]} 11... b5 {[%clk 0:00:45.4]} 12. Bd3 {[%clk 0:00:48.6]} 12... a4 {[%clk 0:00:45.1]} 13. Qc2 {[%clk 0:00:47.1]} 13... Bb7 {[%clk 0:00:44.7]} 14. Ne5 {[%clk 0:00:45.5]} 14... c5 {[%clk 0:00:44.4]} 15. Nxd7 {[%clk 0:00:44]} 15... Qxd7 {[%clk 0:00:44.1]} 16. Be5 {[%clk 0:00:43.5]} 16... Ng4 {[%clk 0:00:42.6]} 17. Bxh7+ {[%clk 0:00:41.4]} 17... Kh8 {[%clk 0:00:42.1]} 18. Bg3 {[%clk 0:00:40.1]} 18... e5 {[%clk 0:00:40.8]} 19. Be4 {[%clk 0:00:38.1]} 19... Bxe4 {[%clk 0:00:39.1]} 20. Qxe4 {[%clk 0:00:37.5]} 20... Nf6 {[%clk 0:00:38.8]} 21. Qh4+ {[%clk 0:00:36]} 21... Nh7 {[%clk 0:00:36.5]} 22. Bxe5 {[%clk 0:00:34.8]} 22... f6 {[%clk 0:00:33.8]} 23. Bf4 {[%clk 0:00:32.6]} 23... Qf5 {[%clk 0:00:32.7]} 24. Rfe1 {[%clk 0:00:30.4]} 24... Qg6 {[%clk 0:00:31.8]} 25. e4 {[%clk 0:00:28.9]} 25... Rae8 {[%clk 0:00:31.5]} 26. e5 {[%clk 0:00:27.6]} 26... Kg8 {[%clk 0:00:28.8]} 27. exf6 {[%clk 0:00:26.4]} 27... Nxf6 {[%clk 0:00:28.5]} 28. Be5 {[%clk 0:00:23.8]} 28... Nh7 {[%clk 0:00:25.4]} 29. Qg3 {[%clk 0:00:21.9]} 29... Qd3 {[%clk 0:00:24.4]} 30. Qxd3 {[%clk 0:00:20.7]} 1-0

[Event "Live Chess"]
[Site "Chess.com"]
[Date "2011.01.29"]
[Round "-"]
[White "hipposcottimus"]
[Black "Nilesh"]
[Result "0-1"]
[CurrentPosition "r5k1/p4Rpp/4p3/8/8/6P1/6qr/4QRK1 w - -"]
[Timezone "UTC"]
[ECO "B20"]
[ECOUrl "https://www.chess.com/openings/Sicilian-Defense"]
[UTCDate "2011.01.29"]
[UTCTime "23:40:33"]
[WhiteElo "1620"]
[BlackElo "1770"]
[TimeControl "60"]
[Termination "Nilesh won by checkmate"]
[StartTime "23:40:33"]
[EndDate "2011.01.29"]
[EndTime "23:41:57"]
[Link "https://www.chess.com/game/live/92771416"]

1. e4 {[%clk 0:01:00]} 1... c5 {[%clk 0:01:00]} 2. Bb5 {[%clk 0:00:58.1]} 2... Nc6 {[%clk 0:00:59.5]} 3. Bxc6 {[%clk 0:00:57.2]} 3... dxc6 {[%clk 0:00:59.2]} 4. c4 {[%clk 0:00:57]} 4... Be6 {[%clk 0:00:58.4]} 5. d3 {[%clk 0:00:56.7]} 5... Nf6 {[%clk 0:00:56.8]} 6. Nc3 {[%clk 0:00:56.5]} 6... Bd7 {[%clk 0:00:55.9]} 7. Nf3 {[%clk 0:00:56.2]} 7... e6 {[%clk 0:00:55.6]} 8. O-O {[%clk 0:00:55.9]} 8... Be7 {[%clk 0:00:55.2]} 9. Be3 {[%clk 0:00:55.7]} 9... O-O {[%clk 0:00:54.9]} 10. d4 {[%clk 0:00:55.4]} 10... cxd4 {[%clk 0:00:53.7]} 11. Bxd4 {[%clk 0:00:55.1]} 11... c5 {[%clk 0:00:53.2]} 12. e5 {[%clk 0:00:52.8]} 12... cxd4 {[%clk 0:00:51.4]} 13. exf6 {[%clk 0:00:52.5]} 13... Bxf6 {[%clk 0:00:50]} 14. Nxd4 {[%clk 0:00:51.1]} 14... Qc7 {[%clk 0:00:47.1]} 15. Nce2 {[%clk 0:00:50.7]} 15... Rfd8 {[%clk 0:00:45.9]} 16. Nf3 {[%clk 0:00:49.2]} 16... Bc6 {[%clk 0:00:42.3]} 17. Qe1 {[%clk 0:00:48.7]} 17... Bxf3 {[%clk 0:00:41.5]} 18. gxf3 {[%clk 0:00:48.4]} 18... Qc6 {[%clk 0:00:41]} 19. Kh1 {[%clk 0:00:48]} 19... Qxf3+ {[%clk 0:00:40.1]} 20. Kg1 {[%clk 0:00:47.7]} 20... Bh4 {[%clk 0:00:39.1]} 21. Ng3 {[%clk 0:00:46.2]} 21... Rd4 {[%clk 0:00:35.4]} 22. Qb4 {[%clk 0:00:45.8]} 22... Bxg3 {[%clk 0:00:33.3]} 23. fxg3 {[%clk 0:00:43.2]} 23... Qe3+ {[%clk 0:00:32.2]} 24. Kh1 {[%clk 0:00:41.9]} 24... Qe4+ {[%clk 0:00:31.6]} 25. Kg1 {[%clk 0:00:40.8]} 25... Rxc4 {[%clk 0:00:28.5]} 26. Qe1 {[%clk 0:00:39.9]} 26... Qd4+ {[%clk 0:00:26.9]} 27. Kh1 {[%clk 0:00:37.9]} 27... Qxb2 {[%clk 0:00:26.1]} 28. Rb1 {[%clk 0:00:36.4]} 28... Qxa2 {[%clk 0:00:24.5]} 29. Rxb7 {[%clk 0:00:35.4]} 29... Rc2 {[%clk 0:00:23.5]} 30. Rbxf7 {[%clk 0:00:34.9]} 30... Rxh2+ {[%clk 0:00:20.5]} 31. Kg1 {[%clk 0:00:31.9]} 31... Qg2# {[%clk 0:00:20.1]} 0-1